fUSD/lending_fUSD_20250526
["ID","MTS","AMOUNT","RATE_DAILY","PERIOD"]
[362363305,1748218242122,-493.21,0.00019994,2]
[362363306,1748218242132,-436.89352348,0.00019994,2]
[362363307,1748218242141,-389.32,0.00019994,2]
[362363308,1748218242150,-563.53,0.00019994,2]
[362363309,1748218242161,-420.0,0.00019994,2]
[362363310,1748218242170,-420.0,0.00019994,2]
[362363311,1748218242179,-420.0,0.00019994,2]
[362363312,1748218242189,-420.0,0.00019994,2]
[362363313,1748218242198,-556.17,0.00019994,2]
[362363314,1748218242207,-420.0,0.00019994,2]
[362363315,1748218242217,-420.0,0.00019994,2]
[362363316,1748218242226,-420.0,0.00019994,2]
[362363317,1748218242236,-442.53359431,0.00019994,2]
[362363318,1748218242246,-542.26586513,0.00019994,2]
[362363319,1748218242256,-420.0,0.00019994,2]
[362363320,1748218242266,-420.0,0.00019994,2]
[362363321,1748218242275,-377.37310573,0.00019994,2]
[362363322,1748218242284,-420.0,0.00019994,2]
[362363323,1748218242294,-338.56,0.00019994,2]
[362363324,1748218242303,-420.0,0.00019994,2]
[362363325,1748218242313,-420.0,0.00019994,2]
[362363326,1748218242322,-420.0,0.00019994,2]
[362363327,1748218242332,-420.0,0.00019994,2]
[362363328,1748218242342,-420.0,0.00019994,2]
[362363329,1748218242354,-420.0,0.00019994,2]
[362363330,1748218242364,-261.47785605,0.00019994,2]
[362363331,1748218242373,-420.0,0.00019994,2]
[362363332,1748218242382,-420.0,0.00019994,2]
[362363333,1748218242391,-420.0,0.00019994,2]
[362363334,1748218242401,-420.0,0.00019994,2]
[362363335,1748218242410,-420.0,0.00019994,2]
[362363336,1748218242420,-271.5,0.00019994,2]
[362363337,1748218242429,-420.0,0.00019994,2]
[362363338,1748218242439,-523.61,0.00019994,2]
[362363339,1748218242448,-420.0,0.00019994,2]
[362363340,1748218242458,-420.0,0.00019994,2]
[362363341,1748218242468,-420.0,0.00019994,2]
[362363342,1748218242477,-420.0,0.00019994,2]
[362363343,1748218242487,-420.0,0.00019994,2]
[362363344,1748218242496,-420.0,0.00019994,2]
[362363345,1748218242505,-565.58,0.00019994,2]
[362363346,1748218242515,-426.148939,0.00019994,2]
[362363347,1748218242524,-420.0,0.00019994,2]
[362363348,1748218242533,-420.0,0.00019994,2]
[362363349,1748218242543,-566.18368952,0.00019994,2]
[362363350,1748218242552,-420.0,0.00019994,2]
[362363351,1748218242562,-420.0,0.00019994,2]
[362363352,1748218242571,-420.0,0.00019994,2]
[362363354,1748218242581,-420.0,0.00019994,2]
[362363355,1748218242593,-420.0,0.00019994,2]
[362363356,1748218242604,-500.0,0.00019994,2]
[362363357,1748218242614,-411.45891999,0.00019994,2]
[362363358,1748218242623,-420.0,0.00019994,2]
[362363359,1748218242635,-420.0,0.00019994,2]
[362363361,1748218242645,-420.0,0.00019994,2]
[362363362,1748218242654,-420.0,0.00019994,2]
[362363363,1748218242665,-420.0,0.00019994,2]
[362363364,1748218242675,-247.86,0.00019994,2]
[362363365,1748218242684,-420.0,0.00019994,2]
[362363366,1748218242694,-420.0,0.00019994,2]
[362363367,1748218242704,-500.0,0.00019994,2]
[362363368,1748218242713,-423.64246995,0.00019994,2]
[362363369,1748218242723,-420.0,0.00019994,2]
[362363370,1748218242733,-420.0,0.00019994,2]
[362363371,1748218242742,-12251.1877656,0.00019994,2]
[362363372,1748218242752,-420.0,0.00019994,2]
[362363373,1748218242762,-420.0,0.00019994,2]
[362363374,1748218242771,-500.0,0.00019994,2]
[362363375,1748218242780,-420.0,0.00019994,2]
[362363376,1748218242790,-420.0,0.00019994,2]
[362363377,1748218242800,-420.0,0.00019994,2]
[362363378,1748218242810,-420.0,0.00019994,2]
[362363379,1748218242819,-458.23,0.00019994,2]
[362363380,1748218242829,-420.0,0.00019994,2]
[362363381,1748218242838,-420.0,0.00019994,2]
[362363382,1748218242848,-421.66479197,0.00019994,2]
[362363383,1748218242858,-420.0,0.00019994,2]
[362363384,1748218242867,-420.0,0.00019994,2]
[362363385,1748218242877,-420.0,0.00019994,2]
[362363386,1748218242886,-420.0,0.00019994,2]
[362363387,1748218242896,-370.19053315,0.00019994,2]
[362363388,1748218242905,-420.0,0.00019994,2]
[362363389,1748218242914,-423.52339773,0.00019994,2]
[362363390,1748218242923,-420.0,0.00019994,2]
[362363391,1748218242933,-420.0,0.00019994,2]
[362363392,1748218242942,-214.52,0.00019994,2]
[362363393,1748218242951,-420.0,0.00019994,2]
[362363394,1748218242960,-420.0,0.00019994,2]
[362363395,1748218242969,-116416.8747867,0.00019994,2]
[362363396,1748218242979,-420.0,0.00019994,2]
[362363397,1748218242988,-384.25,0.00019994,2]
[362363398,1748218242998,-420.0,0.00019994,2]
[362363399,1748218243008,-420.0,0.00019994,2]
[362363400,1748218243017,-420.0,0.00019994,2]
[362363401,1748218243027,-420.0,0.00019994,2]
[362363402,1748218243036,-425.31,0.00019994,2]
[362363403,1748218243045,-420.0,0.00019994,2]
[362363404,1748218243055,-222.36,0.00019994,2]
[362363405,1748218243064,-420.0,0.00019994,2]
[362363406,1748218243073,-420.0,0.00019994,2]
[362363407,1748218243083,-326.85623662,0.00019994,2]
[362363408,1748218243092,-420.0,0.00019994,2]
[362363409,1748218243102,-480.59765028,0.00019994,2]
[362363410,1748218243111,-420.0,0.00019994,2]
[362363411,1748218243120,-422.35687749,0.00019994,2]
[362363412,1748218243130,-341.54,0.00019994,2]
[362363413,1748218243139,-500.0,0.00019994,2]
[362363414,1748218243148,-420.0,0.00019994,2]
[362363416,1748218243157,-420.0,0.00019994,2]
[362363419,1748218243166,-420.0,0.00019994,2]
[362363420,1748218243175,-420.0,0.00019994,2]
[362363422,1748218243184,-420.0,0.00019994,2]
[362363424,1748218243193,-423.25063819,0.00019994,2]
[362363426,1748218243203,-396.21,0.00019994,2]
[362363428,1748218243212,-420.0,0.00019994,2]
[362363431,1748218243221,-376.99,0.00019994,2]
[362363434,1748218243231,-332.57,0.00019994,2]
[362363436,1748218243240,-489.64,0.00019994,2]
[362363438,1748218243249,-426.85081385,0.00019994,2]
[362363440,1748218243259,-15321.570155,0.00019995,2]
[362363441,1748218243267,-420.0,0.00019998,2]
[362363443,1748218243277,-420.0,0.00019998,2]
[362363445,1748218243286,-420.0,0.00019998,2]
[362363447,1748218243295,-1524.9243,0.00019999,2]
[362363449,1748218243304,-2000.0,0.00019999,2]
[362363450,1748218243313,-336.3135,0.00019999,2]
[362363452,1748218243323,-240.49,0.00019999,2]
[362363454,1748218243333,-216.84,0.00019999,2]
[362363456,1748218243342,-420.0,0.00019999,2]
[362363458,1748218243351,-420.0,0.00019999,2]
[362363460,1748218243360,-420.0,0.00019999,2]
[362363462,1748218243370,-420.0,0.00019999,2]
[362363464,1748218243379,-420.0,0.00019999,2]
[362363465,1748218243388,-420.0,0.00019999,2]
[362363466,1748218243397,-345.85,0.00019999,2]
[362363467,1748218243406,-420.0,0.00019999,2]
[362363468,1748218243416,-420.0,0.00019999,2]
[362363469,1748218243425,-420.0,0.00019999,2]
[362363470,1748218243434,-420.0,0.00019999,2]
[362363471,1748218243443,-420.0,0.00019999,2]
[362363472,1748218243452,-420.0,0.00019999,2]
[362363473,1748218243461,-420.0,0.00019999,2]
[362363474,1748218243471,-420.0,0.00019999,2]
[362363475,1748218243480,-420.0,0.00019999,2]
[362363476,1748218243489,-278.0,0.00019999,2]
[362363477,1748218243499,-420.0,0.00019999,2]
[362363478,1748218243508,-159.4144381,0.00019999,2]
[362363479,1748218243517,-420.0,0.00019999,2]
[362363480,1748218243527,-420.0,0.00019999,2]
[362363481,1748218243536,-420.0,0.00019999,2]
[362363482,1748218243545,-480.0,0.00019999,2]
[362363483,1748218243555,-568.98,0.00019999,2]
[362363484,1748218243564,-392.94,0.00019999,2]
[362363485,1748218243574,-420.0,0.00019999,2]
[362363487,1748218243584,-420.0,0.00019999,2]
[362363488,1748218243597,-209.27,0.00019999,2]
[362363490,1748218243606,-361.55,0.00019999,2]
[362363492,1748218243616,-420.0,0.00019999,2]
[362363494,1748218243626,-462.05,0.00019999,2]
[362363496,1748218243636,-420.0,0.00019999,2]
[362363498,1748218243645,-420.0,0.00019999,2]
[362363500,1748218243654,-420.0,0.00019999,2]
[362363502,1748218243665,-420.0,0.00019999,2]
[362363503,1748218243674,-234.36,0.00019999,2]
[362363505,1748218243684,-420.0,0.00019999,2]
[362363507,1748218243693,-519.12,0.00019999,2]
[362363509,1748218243703,-420.0,0.00019999,2]
[362363511,1748218243713,-428.81,0.00019999,2]
[362363513,1748218243722,-420.0,0.00019999,2]
[362363515,1748218243732,-549.56,0.00019999,2]
[362363517,1748218243742,-420.0,0.00019999,2]
[362363519,1748218243751,-283.58972554,0.00019999,2]
[362363521,1748218243761,-532.48785778,0.00019999,2]
[362363523,1748218243770,-420.0,0.00019999,2]
[362363525,1748218243779,-420.0,0.00019999,2]
[362363527,1748218243788,-420.0,0.00019999,2]
[362363529,1748218243798,-420.0,0.00019999,2]
[362363531,1748218243807,-532.37,0.00019999,2]
[362363533,1748218243816,-420.0,0.00019999,2]
[362363535,1748218243825,-442.3,0.00019999,2]
[362363537,1748218243835,-551.58,0.00019999,2]
[362363539,1748218243845,-420.0,0.00019999,2]
[362363541,1748218243855,-420.0,0.00019999,2]
[362363543,1748218243864,-420.0,0.00019999,2]
[362363545,1748218243873,-420.0,0.00019999,2]
[362363547,1748218243883,-444.53,0.00019999,2]
[362363548,1748218243893,-420.0,0.00019999,2]
[362363550,1748218243903,-420.0,0.00019999,2]
[362363552,1748218243912,-420.0,0.00019999,2]
[362363555,1748218243922,-483.7,0.00019999,2]
[362363556,1748218243932,-420.0,0.00019999,2]
[362363558,1748218243942,-398.16574508,0.00019999,2]
[362363560,1748218243951,-420.0,0.00019999,2]
[362363562,1748218243961,-420.0,0.00019999,2]
[362363564,1748218243971,-177.41,0.00019999,2]
[362363566,1748218243981,-420.0,0.00019999,2]
[362363568,1748218243991,-500.0,0.00019999,2]
[362363570,1748218244000,-500.0,0.00019999,2]
[362363572,1748218244010,-500.0,0.00019999,2]
[362363574,1748218244019,-420.0,0.00019999,2]
[362363576,1748218244029,-63086.99768791,0.0002,2]
[362363578,1748218244039,-219.271,0.0002,2]
[362363580,1748218244048,-938.0,0.0002,2]
[362363582,1748218244058,-1311.0,0.0002,2]
[362363584,1748218244067,-632.0,0.0002,2]
[362363586,1748218244076,-800.0,0.0002,2]
[362363588,1748218244085,-586.0,0.0002,2]
[362363590,1748218244094,-555.0,0.0002,2]
[362363592,1748218244103,-922.0,0.0002,2]
[362363594,1748218244113,-1263.0,0.0002,2]
[362363596,1748218244122,-1463.0,0.0002,2]
[362363598,1748218244131,-480927.16997773,0.0002,2]
[362363601,1748218244153,-1698.0,0.0002,2]
[362363603,1748218244165,-972.66005771,0.0002,2]
[362363605,1748218244174,-548.27553099,0.0002,2]
[362363607,1748218244186,-3094.37765937,0.0002,2]
[362363621,1748218244307,-420.0,0.00019898,2]
[362363623,1748218244317,-1351.5825316,0.0002,2]
[362363626,1748218244338,-56777.19063511,0.0002,2]
[362363628,1748218244347,-1000.0,0.0002,2]
[362363630,1748218244357,-58085.11531586,0.0002,2]
[362363632,1748218244366,-10000.0,0.0002,2]
[362363634,1748218244375,-163.69728034,0.0002,2]
[362363636,1748218244385,-12610.83003569,0.0002,2]
[362363638,1748218244396,-22267.27925046,0.0002,2]
[362363641,1748218244416,-1068.0,0.0002,2]
[362363769,1748218245680,-13940.93247168,0.0002,2]
[362363771,1748218245692,-1374.7214544,0.0002,2]
[362363780,1748218245779,-6345.03562416,0.0002,2]
[362363783,1748218245790,-2615.16281577,0.0002,2]
[362363785,1748218245802,-12577.82838763,0.0002,2]
[362363803,1748218245970,-2705.70306548,0.0002,2]
[362363809,1748218246025,-23325.06206428,0.0002,2]
[362363811,1748218246037,-1718.12935,0.0002,2]
[362363818,1748218246093,-420.0,0.00019898,2]
[362363821,1748218246104,-157.18754956,0.0002,2]
[362363823,1748218246116,-2114.12797531,0.0002,2]
[362363824,1748218246126,-954.9355346,0.0002,2]
[362363939,1748218404656,446.44,0.00026018,120]
[362363942,1748218425423,333.9,0.00013699,2]
[362363944,1748218655929,250.0,0.00015,2]
[362363945,1748218657782,-225.82261425,0.00017,2]
[362363946,1748218661848,-74.17738575,0.00017,2]
[362363948,1748218831300,150.0,0.00026348,120]
[362363954,1748219100280,2265.32059618,0.00015,2]
[362363955,1748219100303,4000.0,0.00015,2]
[362363956,1748219100325,4000.0,0.00015,2]
[362363957,1748219100347,4000.0,0.00015,2]
[362363958,1748219100373,9986.00323498,0.00015,2]
[362363959,1748219100395,10000.0,0.00015,2]
[362363960,1748219100423,10000.0,0.00015,2]
[362363961,1748219100446,10000.0,0.00015,2]
[362363962,1748219100468,10000.0,0.00015,2]
[362363963,1748219100490,10000.0,0.00015,2]
[362363964,1748219100514,10000.0,0.00015,2]
[362363965,1748219100537,10000.0,0.00015,2]
[362363966,1748219100558,10000.0,0.00015,2]
[362363967,1748219100579,10000.0,0.00015,2]
[362363968,1748219100600,10000.0,0.00015,2]
[362363969,1748219100623,10000.0,0.00015,2]
[362363970,1748219100648,10000.0,0.00015,2]
[362363971,1748219100670,10000.0,0.00015,2]
[362363972,1748219100693,10000.0,0.00015,2]
[362363973,1748219100717,10000.0,0.00015,2]
[362363974,1748219100742,10000.0,0.00015,2]
[362363975,1748219100764,10000.0,0.00015,2]
[362363976,1748219100785,10000.0,0.00015,2]
[362363977,1748219100806,10000.0,0.00015,2]
[362363978,1748219100829,10000.0,0.00015,2]
[362363979,1748219100852,10000.0,0.00015,2]
[362363980,1748219100886,10000.0,0.00015,2]
[362363981,1748219100914,9271.37616884,0.00015,2]
[362363983,1748219146500,-176.6381465,0.00016457,2]
[362363984,1748219149263,-175.5740513,0.00016457,2]
[362363985,1748219150661,-160.69650351,0.00016457,2]
[362363986,1748219152217,-213.65002,0.00016457,2]
[362363987,1748219154426,-325.5242035,0.00016457,2]
[362363988,1748219156792,-331.24594984,0.00016457,2]
[362363989,1748219158865,-154.02112535,0.00016457,2]
[362363990,1748219162972,728.62383116,8e-05,2]
[362363991,1748219162994,332.31718763,8e-05,2]
[362363992,1748219202125,-151.0,0.00017734,2]
[362363993,1748219202147,-254.36856863,0.00018453,2]
[362363994,1748219275714,266.66000597,0.00015,2]
[362363996,1748219421414,227.51,0.00025373,120]
[362364003,1748219431711,-205.0,0.00018086,2]
[362364004,1748219431723,-100.32,0.00018453,2]
[362364005,1748219431734,-127.19,0.00018453,2]
[362364006,1748219431744,-45.63143137,0.00018453,2]
[362364007,1748219431753,-1200.0,0.00018453,2]
[362364008,1748219431762,-500.0,0.00018453,2]
[362364009,1748219431773,-152.35371609,0.00018453,2]
[362364010,1748219431782,-182.10084367,0.00018453,2]
[362364011,1748219431791,-352.57183419,0.00018453,2]
[362364012,1748219431872,-189.28918256,0.00018453,2]
[362364013,1748219431881,-963.96875125,0.00018454,2]
[362364014,1748219431892,-448.91952069,0.00018454,2]
[362364015,1748219431903,-12334.01679992,0.00018454,2]
[362364016,1748219431914,-12135.33986304,0.00018454,2]
[362364017,1748219431925,-527.12435326,0.00018454,2]
[362364018,1748219431936,-21883.12071184,0.00018454,2]
[362364019,1748219431946,-1650.8180444,0.00018487,2]
[362364020,1748219431955,-850.0,0.00018499,2]
[362364021,1748219431964,-5317.2809375,0.000185,2]
[362364022,1748219431975,-155.79,0.00018501,2]
[362364023,1748219431986,-386.28206245,0.00018503,2]
[362364024,1748219431995,-603.05,0.00018513,2]
[362364025,1748219432005,-1000.0,0.00018529,2]
[362364026,1748219432016,-1537.35,0.00018721,2]
[362364027,1748219432026,-2432.87,0.00018883,2]
[362364028,1748219432035,-2432.87,0.00018888,2]
[362364029,1748219432044,-2432.87,0.00018893,2]
[362364030,1748219432055,-2432.87,0.00018898,2]
[362364031,1748219432064,-2432.87,0.00018903,2]
[362364032,1748219432073,-2432.87,0.00018907,2]
[362364033,1748219432091,-2432.87,0.00018912,2]
[362364034,1748219432102,-2432.87,0.00018917,2]
[362364035,1748219432112,-446.44,0.00018922,2]
[362364036,1748219432122,-411.34113984,0.00018922,2]
[362364038,1748219432134,-500.0,0.00018922,2]
[362364040,1748219432146,-1000.0,0.00018922,2]
[362364558,1748219437778,-396.43681476,0.00018922,2]
[362364560,1748219437790,-125.0920454,0.00018922,2]
[362364562,1748219437802,-457.33,0.00018923,2]
[362364564,1748219437811,-591.55285497,0.00018927,2]
[362364767,1748219439931,-511.94764429,0.00018927,2]
[362364778,1748219440036,-1329.36950074,0.00018927,2]
[362364780,1748219440046,-2432.87,0.00018932,2]
[362364782,1748219440055,-2432.87,0.00018937,2]
[362364784,1748219440064,-287.0,0.00018941,2]
[362364786,1748219440074,-2432.87,0.00018942,2]
[362364788,1748219440084,-2432.87,0.00018947,2]
[362364789,1748219440093,-2432.87,0.00018952,2]
[362364791,1748219440102,-2432.87,0.00018957,2]
[362364793,1748219440113,-2432.87,0.00018962,2]
[362364795,1748219440122,-652.83,0.00018965,2]
[362364797,1748219440132,-2432.87,0.00018967,2]
[362364799,1748219440141,-2432.87,0.00018972,2]
[362364801,1748219440150,-2432.87,0.00018977,2]
[362364803,1748219440159,-151.0,0.00018997,2]
[362364805,1748219440168,-156.0,0.00018997,2]
[362364807,1748219440178,-151.0,0.00018997,2]
[362364809,1748219440187,-668.65185757,0.00018997,2]
[362364811,1748219440197,-668.65185757,0.00018997,2]
[362364813,1748219440206,-207.4,0.00018997,2]
[362364815,1748219440216,-350.0,0.00019,2]
[362364817,1748219440225,-300.0,0.000191,6]
[362364819,1748219440234,-150.0,0.000191,2]
[362364821,1748219440243,-150.0,0.000191,2]
[362364822,1748219440252,-150.0,0.000191,2]
[362364824,1748219440262,-169.35,0.00019178,2]
[362364826,1748219440272,-297.24,0.00019178,2]
[362364828,1748219440281,-700.0,0.000192,7]
[362364830,1748219440292,-1000.0,0.000193,7]
[362364832,1748219440303,-1400.0,0.000194,7]
[362364834,1748219440312,-1700.0,0.000195,7]
[362364836,1748219440321,-164.99,0.00019534,2]
[362364838,1748219440331,-750.0,0.00019572,2]
[362364840,1748219440340,-575.363295,0.00019599,2]
[362364842,1748219440349,-300.0,0.000196,7]
[362364844,1748219440359,-300.0,0.000197,7]
[362364846,1748219440368,-1159.91,0.00019726,2]
[362364848,1748219440378,-170.04,0.00019726,2]
[362364850,1748219440387,-1159.91,0.00019726,2]
[362364853,1748219440397,-1159.91,0.00019726,2]
[362364854,1748219440406,-680.63,0.00019726,2]
[362364856,1748219440416,-340.48,0.00019726,2]
[362364858,1748219440425,-1000.0,0.00019728,2]
[362364860,1748219440434,-1000.0,0.00019739,2]
[362364862,1748219440444,-228.63842062,0.00019749,2]
[362364864,1748219440456,-150.0,0.00019749,2]
[362364866,1748219440466,-150.0,0.00019761,2]
[362364868,1748219440475,-150.0,0.00019766,2]
[362364870,1748219440484,-150.0,0.00019771,2]
[362364872,1748219440493,-1000.0,0.00019778,2]
[362364874,1748219440503,-150.0,0.00019796,2]
[362364876,1748219440513,-300.0,0.000198,7]
[362364878,1748219440523,-31555.4996087,0.000198,2]
[362364881,1748219440533,-1000.0,0.00019808,2]
[362364884,1748219440543,-179.3990496,0.00019895,2]
[362364887,1748219440552,-2500.0,0.00019895,2]
[362364889,1748219440562,-500.0,0.00019895,2]
[362364891,1748219440571,-740.9513,0.00019895,2]
[362364893,1748219440580,-1000.0,0.00019895,2]
[362364895,1748219440589,-150.0,0.00019897,2]
[362364897,1748219440597,-179.39904959,0.00019898,2]
[362364899,1748219440607,-270.24697892,0.00019899,2]
[362364901,1748219440616,-270.24697892,0.00019899,2]
[362364903,1748219440625,-270.24697892,0.00019899,2]
[362364905,1748219440634,-270.24697892,0.00019899,2]
[362364907,1748219440642,-270.24697892,0.00019899,2]
[362364908,1748219440651,-270.24697892,0.000199,2]
[362364910,1748219440660,-270.24697892,0.000199,2]
[362364912,1748219440670,-1406.0348,0.000199,2]
[362364914,1748219440679,-270.24697892,0.000199,2]
[362364916,1748219440689,-270.24697892,0.000199,2]
[362364918,1748219440703,-410.23297324,0.000199,2]
[362364920,1748219440712,-1204.867,0.000199,2]
[362364922,1748219440722,-179.262,0.000199,2]
[362364924,1748219440731,-5800.0,0.000199,2]
[362364926,1748219440740,-868.7271,0.000199,2]
[362364928,1748219440750,-699.8631,0.000199,2]
[362364930,1748219440760,-270.24697892,0.000199,2]
[362364932,1748219440769,-300.0,0.000199,7]
[362364934,1748219440778,-3178.82262683,0.000199,7]
[362364943,1748219440864,-213.17410766,0.000199,7]
[362364944,1748219440879,-947.72946,0.000199,7]
[362364945,1748219440890,-1624.76524641,0.000199,7]
[362364946,1748219440899,-262.55017962,0.000199,2]
[362364947,1748219440909,-151.1800314,0.000199,2]
[362364948,1748219440919,-203.48768867,0.000199,2]
[362364949,1748219440929,-151.18003133,0.000199,2]
[362364950,1748219440939,-151.18003133,0.000199,2]
[362364951,1748219440951,-151.18003133,0.000199,2]
[362364952,1748219440960,-151.18003133,0.000199,2]
[362364953,1748219440970,-179.39904959,0.000199,2]
[362364955,1748219440986,-151.18003133,0.000199,2]
[362364957,1748219440996,-151.18003133,0.000199,2]
[362364958,1748219441006,-151.18003133,0.000199,2]
[362364960,1748219441016,-151.18003133,0.000199,2]
[362364962,1748219441026,-151.18003133,0.000199,2]
[362364964,1748219441036,-206.43273751,0.000199,2]
[362364966,1748219441045,-150.0,0.00019935,2]
[362364968,1748219441054,-150.0,0.00019943,2]
[362364970,1748219441064,-1000.0,0.0001996,2]
[362364972,1748219441074,-1000.0,0.0001997,2]
[362364974,1748219441083,-500.0,0.0001997,2]
[362364976,1748219441093,-500.0,0.00019973,2]
[362364978,1748219441102,-504.85155625,0.00019973,2]
[362364980,1748219441111,-500.0,0.00019973,2]
[362364982,1748219441120,-507.04838419,0.00019973,2]
[362364984,1748219441129,-500.0,0.00019973,2]
[362364986,1748219441138,-265.38324183,0.00019973,2]
[362364988,1748219441147,-500.0,0.00019973,2]
[362364989,1748219441156,-500.0,0.00019973,2]
[362364991,1748219441165,-500.0,0.00019982,2]
[362364993,1748219441175,-500.0,0.00019982,2]
[362364995,1748219441184,-1000.0,0.00019985,2]
[362364997,1748219441196,-187.66407001,0.00019985,2]
[362364999,1748219441205,-500.0,0.00019985,2]
[362365001,1748219441215,-500.0,0.00019985,2]
[362365003,1748219441224,-500.0,0.00019985,2]
[362365005,1748219441234,-231.70806141,0.00019985,2]
[362365007,1748219441243,-500.0,0.00019985,2]
[362365009,1748219441252,-500.0,0.00019985,2]
[362365011,1748219441261,-500.0,0.00019985,2]
[362365013,1748219441270,-500.0,0.00019985,2]
[362365015,1748219441281,-500.0,0.00019985,2]
[362365017,1748219441289,-564.5426072,0.00019985,2]
[362365019,1748219441298,-500.0,0.00019985,2]
[362365021,1748219441307,-500.0,0.00019985,2]
[362365022,1748219441316,-500.0,0.00019985,2]
[362365024,1748219441325,-500.0,0.00019985,2]
[362365026,1748219441335,-500.0,0.00019985,2]
[362365028,1748219441343,-300.0,0.00019985,2]
[362365030,1748219441352,-500.0,0.00019985,2]
[362365032,1748219441360,-500.0,0.00019985,2]
[362365034,1748219441369,-233.83,0.00019985,2]
[362365036,1748219441379,-6343.2182141,0.00019986,2]
[362365038,1748219441388,-7369.1554908,0.00019986,2]
[362365040,1748219441397,-8395.0927674,0.00019986,2]
[362365042,1748219441406,-9421.0300441,0.00019986,2]
[362365044,1748219441417,-10446.9673208,0.00019986,2]
[362365046,1748219441427,-1467.0549272,0.00019986,2]
[362365047,1748219441436,-1283.29181,0.00019986,2]
[362365049,1748219441448,-1099.5286928,0.00019986,2]
[362365051,1748219441457,-915.7655757,0.00019986,2]
[362365075,1748219441667,-732.0024585,0.00019986,2]
[362365077,1748219441679,-17954.04655006,0.0001999,2]
[362365079,1748219441688,-150.9,0.0001999,2]
[362365081,1748219441698,-150.9,0.0001999,2]
[362365083,1748219441708,-150.9,0.0001999,2]
[362365085,1748219441725,-150.9,0.0001999,2]
[362365087,1748219441735,-150.9,0.0001999,2]
[362365089,1748219441744,-420.0,0.00019993,2]
[362365091,1748219441754,-420.0,0.00019993,2]
[362365093,1748219441763,-240.49,0.00019993,2]
[362365095,1748219441772,-420.0,0.00019993,2]
[362365097,1748219441781,-420.0,0.00019993,2]
[362365099,1748219441790,-420.0,0.00019993,2]
[362365101,1748219441799,-552.3,0.00019993,2]
[362365103,1748219441808,-420.0,0.00019993,2]
[362365105,1748219441816,-420.0,0.00019994,2]
[362365107,1748219441825,-420.0,0.00019994,2]
[362365109,1748219441835,-420.0,0.00019994,2]
[362365111,1748219441844,-345.85,0.00019994,2]
[362365113,1748219441853,-420.0,0.00019994,2]
[362365115,1748219441862,-420.0,0.00019994,2]
[362365117,1748219441871,-420.0,0.00019994,2]
[362365119,1748219441880,-420.0,0.00019994,2]
[362365120,1748219441889,-420.0,0.00019994,2]
[362365122,1748219441899,-420.0,0.00019994,2]
[362365124,1748219441908,-420.0,0.00019994,2]
[362365126,1748219441917,-420.0,0.00019994,2]
[362365128,1748219441926,-420.0,0.00019994,2]
[362365130,1748219441935,-420.0,0.00019994,2]
[362365132,1748219441946,-420.0,0.00019994,2]
[362365134,1748219441956,-420.0,0.00019994,2]
[362365136,1748219441965,-420.0,0.00019994,2]
[362365138,1748219441975,-420.0,0.00019994,2]